[Event "January 2 Late 2024"]
[Site "https://www.chess.com"]
[Date "2024.01.02"]
[Round "7"]
[White "Gavrilov, Maxim"]
[Black "Van der Werf, Mark"]
[Result "0-1"]
[Board "131"]
[TimeControl "180+1"]
[WhiteFideId "24271454"]
[BlackFideId "1000470"]
[WhiteElo "2489"]
[BlackElo "2339"]
[WhiteTeam "RUS"]
[BlackTeam "NED"]
[WhiteClock "0:00:00"]
[BlackClock "0:00:53"]

1. d4 {[%clk 0:03:00]}  g6 {[%clk 0:02:59]} 2. c4 {[%clk 0:02:58]}  Bg7 {[%clk 0:02:59]} 3. Nc3 {[%clk 0:02:58]}  c5 {[%clk 0:02:59]} 4. d5 {[%clk 0:02:53]}  d6 {[%clk 0:02:58]} 5. Nf3 {[%clk 0:02:45]}  Nf6 {[%clk 0:02:58]} 6. g3 {[%clk 0:02:45]}  O-O {[%clk 0:02:57]} 7. Bg2 {[%clk 0:02:45]}  Na6 {[%clk 0:02:57]} 8. O-O {[%clk 0:02:45]}  Nc7 {[%clk 0:02:57]} 9. e4 {[%clk 0:02:40]}  Bg4 {[%clk 0:02:49]} 10. Qc2 {[%clk 0:02:30]}  Bxf3 {[%clk 0:02:48]} 11. Bxf3 {[%clk 0:02:30]}  Nd7 {[%clk 0:02:48]} 12. Bg2 {[%clk 0:02:26]}  a6 {[%clk 0:02:45]} 13. a4 {[%clk 0:02:25]}  Rb8 {[%clk 0:02:43]} 14. a5 {[%clk 0:02:23]}  b5 {[%clk 0:02:41]} 15. axb6 {[%clk 0:02:23]}  Rxb6 {[%clk 0:02:40]} 16. Bd2 {[%clk 0:02:03]}  Qb8 {[%clk 0:02:38]} 17. Rfb1 {[%clk 0:02:01]}  Rb3 {[%clk 0:02:27]} 18. Ra3 {[%clk 0:01:53]}  Rb4 {[%clk 0:02:14]} 19. b3 {[%clk 0:01:44]}  Ne5 {[%clk 0:02:06]} 20. Raa1 {[%clk 0:01:38]}  Rb7 {[%clk 0:01:57]} 21. h3 {[%clk 0:01:36]}  e6 {[%clk 0:01:54]} 22. f4 {[%clk 0:01:22]}  Nd7 {[%clk 0:01:53]} 23. Ra2 {[%clk 0:01:11]}  exd5 {[%clk 0:01:51]} 24. cxd5 {[%clk 0:01:09]}  Re8 {[%clk 0:01:47]} 25. Ne2 {[%clk 0:00:54]}  Nxd5 {[%clk 0:01:42]} 26. Rxa6 {[%clk 0:00:42]}  Nb4 {[%clk 0:01:29]} 27. Bxb4 {[%clk 0:00:36]}  Rxb4 {[%clk 0:01:28]} 28. Qd3 {[%clk 0:00:35]}  c4 {[%clk 0:01:23]} 29. Qxd6 {[%clk 0:00:29]}  Nf8 {[%clk 0:01:22]} 30. Qxb8 {[%clk 0:00:17]}  Rexb8 {[%clk 0:01:20]} 31. e5 {[%clk 0:00:15]}  cxb3 {[%clk 0:01:18]} 32. Bd5 {[%clk 0:00:15]}  b2 {[%clk 0:01:12]} 33. Ra7 {[%clk 0:00:14]}  Ne6 {[%clk 0:01:11]} 34. Nc3 {[%clk 0:00:06]}  Bf8 {[%clk 0:01:10]} 35. Ne4 {[%clk 0:00:04]}  Rxe4 {[%clk 0:01:08]} 36. Bxe4 {[%clk 0:00:04]}  Bc5+ {[%clk 0:01:08]} 37. Kg2 {[%clk 0:00:05]}  Bxa7 {[%clk 0:01:07]} 38. f5 {[%clk 0:00:05]}  gxf5 {[%clk 0:01:04]} 39. Bxf5 {[%clk 0:00:06]}  Nd4 {[%clk 0:01:03]} 40. Be4 {[%clk 0:00:06]}  Ne2 {[%clk 0:01:02]} 41. Bd5 {[%clk 0:00:02]}  Nc3 {[%clk 0:01:00]} 42. Bxf7+ {[%clk 0:00:03]}  Kxf7 {[%clk 0:00:59]} 43. Rf1+ {[%clk 0:00:04]}  Kg7 {[%clk 0:00:59]} 44. g4 {[%clk 0:00:03]}  b1=Q {[%clk 0:00:57]} 45. Rf2 {[%clk 0:00:03]}  Qe4+ {[%clk 0:00:55]} 46. Rf3 {[%clk 0:00:00]}  Rf8 {[%clk 0:00:53]} 0-1

[Event "January 2 Late 2024"]
[Site "https://www.chess.com"]
[Date "2024.01.02"]
[Round "7"]
[White "Vifleemskaia, Svetlana"]
[Black "Morales Garcia, Sergio Joshafatt"]
[Result "0-1"]
[Board "136"]
[TimeControl "180+1"]
[WhiteFideId "4129490"]
[BlackFideId "5106249"]
[WhiteElo "2245"]
[BlackElo "2435"]
[WhiteTeam "RUS"]
[BlackTeam "MEX"]
[WhiteClock "0:00:02"]
[BlackClock "0:00:13"]

1. d4 {[%clk 0:02:50]}  d5 {[%clk 0:02:58]} 2. c4 {[%clk 0:02:50]}  c6 {[%clk 0:02:56]} 3. cxd5 {[%clk 0:02:50]}  cxd5 {[%clk 0:02:57]} 4. Bf4 {[%clk 0:02:50]}  Nc6 {[%clk 0:02:57]} 5. e3 {[%clk 0:02:48]}  Nf6 {[%clk 0:02:58]} 6. Nc3 {[%clk 0:02:48]}  Bf5 {[%clk 0:02:58]} 7. Qb3 {[%clk 0:02:47]}  Na5 {[%clk 0:02:57]} 8. Qa4+ {[%clk 0:02:47]}  Bd7 {[%clk 0:02:58]} 9. Qc2 {[%clk 0:02:47]}  e6 {[%clk 0:02:58]} 10. Bd3 {[%clk 0:02:48]}  Rc8 {[%clk 0:02:57]} 11. Nf3 {[%clk 0:02:48]}  Bb4 {[%clk 0:02:57]} 12. O-O {[%clk 0:02:47]}  O-O {[%clk 0:02:57]} 13. Rac1 {[%clk 0:02:46]}  Bxc3 {[%clk 0:02:56]} 14. bxc3 {[%clk 0:02:45]}  Nc4 {[%clk 0:02:55]} 15. Ne5 {[%clk 0:02:42]}  Bb5 {[%clk 0:02:45]} 16. a4 {[%clk 0:02:40]}  Ba6 {[%clk 0:02:44]} 17. Bg5 {[%clk 0:02:21]}  h6 {[%clk 0:02:16]} 18. Bxf6 {[%clk 0:02:18]}  gxf6 {[%clk 0:02:14]} 19. Ng4 {[%clk 0:02:01]}  f5 {[%clk 0:02:12]} 20. Ne5 {[%clk 0:01:22]}  Nxe5 {[%clk 0:02:10]} 21. Bxa6 {[%clk 0:01:10]}  bxa6 {[%clk 0:02:10]} 22. dxe5 {[%clk 0:01:10]}  Rc4 {[%clk 0:02:10]} 23. f4 {[%clk 0:01:07]}  Qa5 {[%clk 0:02:06]} 24. Rf3 {[%clk 0:01:03]}  Rfc8 {[%clk 0:01:58]} 25. Qf2 {[%clk 0:00:57]}  Rxc3 {[%clk 0:01:55]} 26. Rf1 {[%clk 0:00:51]}  Rc1 {[%clk 0:01:52]} 27. Qh4 {[%clk 0:00:46]}  Rxf1+ {[%clk 0:01:49]} 28. Rxf1 {[%clk 0:00:38]}  Qd2 {[%clk 0:01:40]} 29. Qxh6 {[%clk 0:00:32]}  Qxe3+ {[%clk 0:01:11]} 30. Kh1 {[%clk 0:00:32]}  d4 {[%clk 0:01:06]} 31. Qg5+ {[%clk 0:00:23]}  Kf8 {[%clk 0:01:06]} 32. Qh6+ {[%clk 0:00:21]}  Ke8 {[%clk 0:01:03]} 33. h3 {[%clk 0:00:09]}  d3 {[%clk 0:01:01]} 34. Qh8+ {[%clk 0:00:08]}  Kd7 {[%clk 0:01:01]} 35. Qf6 {[%clk 0:00:07]}  Re8 {[%clk 0:00:19]} 36. Rb1 {[%clk 0:00:05]}  d2 {[%clk 0:00:13]} 37. Qxf7+ {[%clk 0:00:05]}  Re7 {[%clk 0:00:12]} 38. Rb7+ {[%clk 0:00:04]}  Kc6 {[%clk 0:00:12]} 39. Qxe7 {[%clk 0:00:03]}  d1=Q+ {[%clk 0:00:12]} 40. Kh2 {[%clk 0:00:02]}  Qdg1# {[%clk 0:00:13]} 0-1

[Event "January 2 Late 2024"]
[Site "https://www.chess.com"]
[Date "2024.01.02"]
[Round "7"]
[White "Arlo2024"]
[Black "Hoeffer, David"]
[Result "1-0"]
[Board "137"]
[TimeControl "180+1"]
[BlackFideId "24606766"]
[WhiteElo "2243"]
[BlackElo "2432"]
[BlackTeam "GER"]
[WhiteClock "0:01:23"]
[BlackClock "0:01:31"]

1. e4 {[%clk 0:03:00]}  e5 {[%clk 0:02:55]} 2. Nf3 {[%clk 0:03:00]}  Nc6 {[%clk 0:02:56]} 3. Bc4 {[%clk 0:02:59]}  Nf6 {[%clk 0:02:55]} 4. d4 {[%clk 0:02:59]}  exd4 {[%clk 0:02:55]} 5. O-O {[%clk 0:03:00]}  Bc5 {[%clk 0:02:46]} 6. e5 {[%clk 0:03:00]}  d5 {[%clk 0:02:46]} 7. exf6 {[%clk 0:03:00]}  dxc4 {[%clk 0:02:46]} 8. fxg7 {[%clk 0:03:00]}  Rg8 {[%clk 0:02:46]} 9. Bg5 {[%clk 0:03:00]}  Qd5 {[%clk 0:02:39]} 10. Nc3 {[%clk 0:02:55]}  Qf5 {[%clk 0:02:35]} 11. Re1+ {[%clk 0:02:52]}  Be6 {[%clk 0:02:35]} 12. Ne4 {[%clk 0:02:48]}  Be7 {[%clk 0:02:31]} 13. Bxe7 {[%clk 0:02:36]}  Kxe7 {[%clk 0:02:32]} 14. Nxd4 {[%clk 0:02:27]}  Nxd4 {[%clk 0:02:33]} 15. Qxd4 {[%clk 0:02:26]}  Rad8 {[%clk 0:02:34]} 16. Ng3 {[%clk 0:02:12]}  Qg5 {[%clk 0:02:11]} 17. Qxc4 {[%clk 0:02:03]}  Rxg7 {[%clk 0:02:09]} 18. Qxc7+ {[%clk 0:01:59]}  Rd7 {[%clk 0:02:09]} 19. Qc3 {[%clk 0:01:51]}  Rg6 {[%clk 0:01:59]} 20. Re5 {[%clk 0:01:46]}  Qg4 {[%clk 0:01:49]} 21. Qc5+ {[%clk 0:01:29]}  Kf6 {[%clk 0:01:41]} 22. Nh5+ {[%clk 0:01:22]}  Qxh5 {[%clk 0:01:31]} 23. Rxh5 {[%clk 0:01:23]} 1-0

[Event "January 2 Late 2024"]
[Site "https://www.chess.com"]
[Date "2024.01.02"]
[Round "7"]
[White "Dmitriev, Sergey"]
[Black "Bouget, Alexandre"]
[Result "1-0"]
[Board "139"]
[TimeControl "180+1"]
[WhiteFideId "14101785"]
[BlackFideId "681318"]
[WhiteElo "2026"]
[BlackElo "2426"]
[WhiteTeam "UKR"]
[BlackTeam "FRA"]
[WhiteClock "0:00:13"]
[BlackClock "0:00:00"]

1. e4 {[%clk 0:02:41]}  d5 {[%clk 0:02:56]} 2. exd5 {[%clk 0:02:40]}  Qxd5 {[%clk 0:02:57]} 3. Nc3 {[%clk 0:02:40]}  Qe6+ {[%clk 0:02:57]} 4. Be2 {[%clk 0:02:37]}  Qg6 {[%clk 0:02:57]} 5. Bf3 {[%clk 0:02:33]}  Nc6 {[%clk 0:02:58]} 6. Nge2 {[%clk 0:02:32]}  e5 {[%clk 0:02:54]} 7. Bxc6+ {[%clk 0:02:24]}  bxc6 {[%clk 0:02:45]} 8. O-O {[%clk 0:02:24]}  h5 {[%clk 0:02:43]} 9. d4 {[%clk 0:02:11]}  Bh3 {[%clk 0:02:20]} 10. Ng3 {[%clk 0:02:05]}  h4 {[%clk 0:02:09]} 11. gxh3 {[%clk 0:02:04]}  hxg3 {[%clk 0:02:09]} 12. fxg3 {[%clk 0:02:04]}  Rxh3 {[%clk 0:01:52]} 13. Qf3 {[%clk 0:01:49]}  exd4 {[%clk 0:01:40]} 14. Re1+ {[%clk 0:01:35]}  Be7 {[%clk 0:01:39]} 15. Ne2 {[%clk 0:01:26]}  Rh8 {[%clk 0:01:20]} 16. Nf4 {[%clk 0:01:24]}  Qh6 {[%clk 0:01:17]} 17. Qf2 {[%clk 0:01:17]}  O-O-O {[%clk 0:01:07]} 18. Nd5 {[%clk 0:01:08]}  Qd6 {[%clk 0:00:42]} 19. Nxe7+ {[%clk 0:00:58]}  Nxe7 {[%clk 0:00:43]} 20. Bf4 {[%clk 0:00:55]}  Qd7 {[%clk 0:00:42]} 21. Rad1 {[%clk 0:00:49]}  c5 {[%clk 0:00:40]} 22. Re5 {[%clk 0:00:42]}  Nd5 {[%clk 0:00:36]} 23. Qf3 {[%clk 0:00:38]}  Kb8 {[%clk 0:00:29]} 24. Qb3+ {[%clk 0:00:32]}  Nb6 {[%clk 0:00:27]} 25. Rxc5 {[%clk 0:00:27]}  Qh3 {[%clk 0:00:21]} 26. Bxc7+ {[%clk 0:00:23]}  Kb7 {[%clk 0:00:20]} 27. Qf3+ {[%clk 0:00:22]}  Rd5 {[%clk 0:00:14]} 28. Rd2 {[%clk 0:00:18]}  Rh5 {[%clk 0:00:08]} 29. Bxb6 {[%clk 0:00:17]}  Qe6 {[%clk 0:00:05]} 30. Rxd5 {[%clk 0:00:14]}  Qe1+ {[%clk 0:00:00]} 31. Qf1 {[%clk 0:00:13]} 1-0

[Event "January 2 Late 2024"]
[Site "https://www.chess.com"]
[Date "2024.01.02"]
[Round "7"]
[White "Kovacevic, Radmila"]
[Black "Avramidou, Anastasia"]
[Result "1/2-1/2"]
[Board "140"]
[TimeControl "180+1"]
[WhiteFideId "933171"]
[BlackFideId "4239873"]
[WhiteElo "2179"]
[BlackElo "2551"]
[WhiteTeam "SRB"]
[BlackTeam "GRE"]
[WhiteClock "0:00:22"]
[BlackClock "0:00:04"]

1. e4 {[%clk 0:03:00]}  g6 {[%clk 0:03:00]} 2. h4 {[%clk 0:03:00]}  h5 {[%clk 0:02:59]} 3. d4 {[%clk 0:03:00]}  Bg7 {[%clk 0:03:00]} 4. c3 {[%clk 0:03:00]}  d6 {[%clk 0:03:00]} 5. Bg5 {[%clk 0:03:00]}  Nf6 {[%clk 0:02:59]} 6. Nd2 {[%clk 0:02:59]}  c5 {[%clk 0:02:58]} 7. d5 {[%clk 0:02:53]}  O-O {[%clk 0:02:54]} 8. Be2 {[%clk 0:02:52]}  e6 {[%clk 0:02:53]} 9. dxe6 {[%clk 0:02:47]}  Bxe6 {[%clk 0:02:54]} 10. g4 {[%clk 0:02:43]}  hxg4 {[%clk 0:02:37]} 11. h5 {[%clk 0:02:41]}  gxh5 {[%clk 0:02:37]} 12. Rxh5 {[%clk 0:02:40]}  Qd7 {[%clk 0:02:30]} 13. Rh4 {[%clk 0:02:31]}  Re8 {[%clk 0:02:22]} 14. Qc2 {[%clk 0:02:28]}  Nc6 {[%clk 0:02:09]} 15. O-O-O {[%clk 0:02:24]}  Ne5 {[%clk 0:02:04]} 16. f4 {[%clk 0:02:19]}  gxf3 {[%clk 0:01:58]} 17. Ngxf3 {[%clk 0:02:18]}  Ng6 {[%clk 0:01:58]} 18. Rhh1 {[%clk 0:02:09]}  Ng4 {[%clk 0:01:33]} 19. Rdg1 {[%clk 0:02:04]}  b5 {[%clk 0:01:12]} 20. Nh4 {[%clk 0:01:49]}  N4e5 {[%clk 0:01:12]} 21. Ndf3 {[%clk 0:01:40]}  Rac8 {[%clk 0:00:50]} 22. Nxg6 {[%clk 0:01:37]}  Nxg6 {[%clk 0:00:48]} 23. Nh4 {[%clk 0:01:36]}  Qc6 {[%clk 0:00:35]} 24. Bh5 {[%clk 0:01:33]}  Rc7 {[%clk 0:00:15]} 25. Nxg6 {[%clk 0:01:32]}  fxg6 {[%clk 0:00:15]} 26. Bxg6 {[%clk 0:01:32]}  Bf7 {[%clk 0:00:16]} 27. Bh7+ {[%clk 0:01:29]}  Kf8 {[%clk 0:00:16]} 28. Rf1 {[%clk 0:01:23]}  Re5 {[%clk 0:00:08]} 29. Bf4 {[%clk 0:01:20]}  Ree7 {[%clk 0:00:07]} 30. Qd2 {[%clk 0:01:17]}  Ke8 {[%clk 0:00:07]} 31. Qxd6 {[%clk 0:01:08]}  Red7 {[%clk 0:00:06]} 32. Qxc6 {[%clk 0:01:04]}  Rxc6 {[%clk 0:00:07]} 33. Bf5 {[%clk 0:01:02]}  Re7 {[%clk 0:00:03]} 34. Rh7 {[%clk 0:00:59]}  Be5 {[%clk 0:00:04]} 35. Bxe5 {[%clk 0:00:57]}  Rxe5 {[%clk 0:00:04]} 36. Rd1 {[%clk 0:00:49]}  Rc7 {[%clk 0:00:03]} 37. Rd6 {[%clk 0:00:47]}  Ke7 {[%clk 0:00:01]} 38. Rdh6 {[%clk 0:00:44]}  Kf8 {[%clk 0:00:02]} 39. Rh8+ {[%clk 0:00:43]}  Ke7 {[%clk 0:00:02]} 40. R6h7 {[%clk 0:00:43]}  Kd6 {[%clk 0:00:02]} 41. Rf8 {[%clk 0:00:42]}  Ree7 {[%clk 0:00:02]} 42. Kd2 {[%clk 0:00:40]}  Bxa2 {[%clk 0:00:02]} 43. Rd8+ {[%clk 0:00:38]}  Kc6 {[%clk 0:00:03]} 44. Rxe7 {[%clk 0:00:36]}  Rxe7 {[%clk 0:00:03]} 45. Ke3 {[%clk 0:00:35]}  Bc4 {[%clk 0:00:03]} 46. Kf4 {[%clk 0:00:34]}  a5 {[%clk 0:00:03]} 47. Rc8+ {[%clk 0:00:34]}  Kb6 {[%clk 0:00:04]} 48. e5 {[%clk 0:00:34]}  b4 {[%clk 0:00:04]} 49. Rf8 {[%clk 0:00:31]}  bxc3 {[%clk 0:00:04]} 50. Rf6+ {[%clk 0:00:31]}  Kb5 {[%clk 0:00:03]} 51. bxc3 {[%clk 0:00:31]}  a4 {[%clk 0:00:04]} 52. Bb1 {[%clk 0:00:26]}  a3 {[%clk 0:00:04]} 53. Kf5 {[%clk 0:00:24]}  a2 {[%clk 0:00:04]} 54. Bxa2 {[%clk 0:00:25]}  Bxa2 {[%clk 0:00:05]} 55. e6 {[%clk 0:00:24]}  Ka4 {[%clk 0:00:04]} 56. Ke5 {[%clk 0:00:23]}  Ka3 {[%clk 0:00:04]} 57. Kd6 {[%clk 0:00:23]}  Rxe6+ {[%clk 0:00:03]} 58. Rxe6 {[%clk 0:00:22]}  Bxe6 {[%clk 0:00:03]} 59. Kxc5 {[%clk 0:00:22]}  Kb3 {[%clk 0:00:03]} 60. c4 {[%clk 0:00:22]}  Bxc4 {[%clk 0:00:04]} 1/2-1/2

[Event "January 2 Late 2024"]
[Site "https://www.chess.com"]
[Date "2024.01.02"]
[Round "7"]
[White "Kotlyar, Kirill"]
[Black "Zampronha, Wladimir Camilo"]
[Result "0-1"]
[Board "142"]
[TimeControl "180+1"]
[WhiteFideId "24145599"]
[BlackFideId "2103087"]
[WhiteElo "2532"]
[BlackElo "2316"]
[WhiteTeam "RUS"]
[BlackTeam "BRA"]
[WhiteClock "0:00:02"]
[BlackClock "0:00:39"]

1. e4 {[%clk 0:03:00]}  c5 {[%clk 0:02:59]} 2. Nf3 {[%clk 0:02:59]}  e6 {[%clk 0:02:59]} 3. d4 {[%clk 0:02:59]}  cxd4 {[%clk 0:03:00]} 4. Nxd4 {[%clk 0:02:59]}  Nc6 {[%clk 0:03:01]} 5. Nc3 {[%clk 0:02:54]}  Qc7 {[%clk 0:03:01]} 6. g3 {[%clk 0:02:50]}  a6 {[%clk 0:02:56]} 7. Bg2 {[%clk 0:02:46]}  Nf6 {[%clk 0:02:55]} 8. O-O {[%clk 0:02:46]}  Be7 {[%clk 0:02:51]} 9. Re1 {[%clk 0:02:46]}  O-O {[%clk 0:02:50]} 10. Nxc6 {[%clk 0:02:46]}  dxc6 {[%clk 0:02:49]} 11. e5 {[%clk 0:02:38]}  Rd8 {[%clk 0:02:49]} 12. Qe2 {[%clk 0:02:37]}  Nd5 {[%clk 0:02:48]} 13. Nd1 {[%clk 0:01:59]}  b5 {[%clk 0:02:34]} 14. b3 {[%clk 0:01:55]}  Bb7 {[%clk 0:02:29]} 15. c4 {[%clk 0:01:52]}  Nb4 {[%clk 0:02:24]} 16. Be4 {[%clk 0:01:52]}  c5 {[%clk 0:02:18]} 17. Bb1 {[%clk 0:01:28]}  Qc6 {[%clk 0:02:14]} 18. f3 {[%clk 0:01:11]}  Qxf3 {[%clk 0:02:13]} 19. Qxf3 {[%clk 0:01:10]}  Bxf3 {[%clk 0:02:14]} 20. Nf2 {[%clk 0:01:08]}  bxc4 {[%clk 0:02:12]} 21. bxc4 {[%clk 0:01:07]}  Nc6 {[%clk 0:02:01]} 22. Ba3 {[%clk 0:00:54]}  Nd4 {[%clk 0:01:54]} 23. Bd3 {[%clk 0:00:54]}  Bc6 {[%clk 0:01:51]} 24. Rad1 {[%clk 0:00:52]}  Nf3+ {[%clk 0:01:50]} 25. Kf1 {[%clk 0:00:52]}  Nxe1 {[%clk 0:01:48]} 26. Kxe1 {[%clk 0:00:53]}  Rab8 {[%clk 0:01:39]} 27. Ke2 {[%clk 0:00:51]}  h6 {[%clk 0:01:36]} 28. h4 {[%clk 0:00:45]}  Rd7 {[%clk 0:01:35]} 29. Rd2 {[%clk 0:00:37]}  Rbd8 {[%clk 0:01:26]} 30. Rb2 {[%clk 0:00:37]}  Rb7 {[%clk 0:01:24]} 31. Rd2 {[%clk 0:00:37]}  h5 {[%clk 0:01:20]} 32. Rc2 {[%clk 0:00:34]}  g6 {[%clk 0:01:19]} 33. Bc1 {[%clk 0:00:31]}  Bf8 {[%clk 0:01:17]} 34. Be3 {[%clk 0:00:29]}  Bg7 {[%clk 0:01:16]} 35. Bf4 {[%clk 0:00:25]}  Rd4 {[%clk 0:01:14]} 36. Ke3 {[%clk 0:00:20]}  Rb4 {[%clk 0:01:13]} 37. Be2 {[%clk 0:00:20]}  a5 {[%clk 0:01:09]} 38. a3 {[%clk 0:00:20]}  Rb3+ {[%clk 0:01:08]} 39. Bd3 {[%clk 0:00:17]}  Rxa3 {[%clk 0:01:07]} 40. Rb2 {[%clk 0:00:16]}  a4 {[%clk 0:01:00]} 41. Rb8+ {[%clk 0:00:16]}  Kh7 {[%clk 0:00:59]} 42. Rc8 {[%clk 0:00:17]}  Bg2 {[%clk 0:00:53]} 43. Rxc5 {[%clk 0:00:16]}  Rdxd3+ {[%clk 0:00:53]} 44. Nxd3 {[%clk 0:00:15]}  Bf1 {[%clk 0:00:54]} 45. Rc7 {[%clk 0:00:12]}  Bxd3 {[%clk 0:00:53]} 46. Kd4 {[%clk 0:00:13]}  Bf1 {[%clk 0:00:50]} 47. Rxf7 {[%clk 0:00:12]}  Rd3+ {[%clk 0:00:48]} 48. Ke4 {[%clk 0:00:11]}  a3 {[%clk 0:00:48]} 49. Ra7 {[%clk 0:00:10]}  Rb3 {[%clk 0:00:46]} 50. c5 {[%clk 0:00:09]}  Bc4 {[%clk 0:00:45]} 51. Kd4 {[%clk 0:00:09]}  Bd5 {[%clk 0:00:45]} 52. Ra6 {[%clk 0:00:09]}  a2 {[%clk 0:00:45]} 53. c6 {[%clk 0:00:07]}  Rb1 {[%clk 0:00:45]} 54. c7 {[%clk 0:00:06]}  Rc1 {[%clk 0:00:45]} 55. Ra7 {[%clk 0:00:04]}  Rxc7 {[%clk 0:00:43]} 56. Rxc7 {[%clk 0:00:03]}  a1=Q+ {[%clk 0:00:43]} 57. Kc5 {[%clk 0:00:03]}  Qa3+ {[%clk 0:00:41]} 58. Kb6 {[%clk 0:00:03]}  Qb4+ {[%clk 0:00:40]} 59. Ka7 {[%clk 0:00:02]}  Qa5+ {[%clk 0:00:39]} 60. Kb8 {[%clk 0:00:02]}  Qa8# {[%clk 0:00:39]} 0-1

[Event "January 2 Late 2024"]
[Site "https://www.chess.com"]
[Date "2024.01.02"]
[Round "7"]
[White "Korpics, Zsolt"]
[Black "Gonzalez Zharikov, Andrey"]
[Result "0-1"]
[Board "144"]
[TimeControl "180+1"]
[WhiteFideId "705241"]
[BlackFideId "5145287"]
[WhiteElo "2499"]
[BlackElo "2294"]
[WhiteTeam "HUN"]
[BlackTeam "MEX"]
[WhiteClock "0:00:01"]
[BlackClock "0:00:03"]

1. e4 {[%clk 0:03:00]}  c6 {[%clk 0:02:58]} 2. Nf3 {[%clk 0:03:01]}  d5 {[%clk 0:02:58]} 3. Nc3 {[%clk 0:03:01]}  dxe4 {[%clk 0:02:58]} 4. Nxe4 {[%clk 0:03:02]}  Nf6 {[%clk 0:02:58]} 5. Qe2 {[%clk 0:03:03]}  Nxe4 {[%clk 0:02:58]} 6. Qxe4 {[%clk 0:03:04]}  Nd7 {[%clk 0:02:55]} 7. Bc4 {[%clk 0:03:04]}  Nf6 {[%clk 0:02:55]} 8. Ne5 {[%clk 0:03:04]}  e6 {[%clk 0:02:55]} 9. Qf4 {[%clk 0:03:04]}  Qc7 {[%clk 0:02:52]} 10. d4 {[%clk 0:03:04]}  Bd6 {[%clk 0:02:52]} 11. Qg5 {[%clk 0:02:30]}  O-O {[%clk 0:02:49]} 12. h4 {[%clk 0:02:30]}  Nd5 {[%clk 0:02:34]} 13. Ng4 {[%clk 0:02:21]}  f6 {[%clk 0:02:16]} 14. Qd2 {[%clk 0:02:16]}  b5 {[%clk 0:02:10]} 15. Bd3 {[%clk 0:02:14]}  e5 {[%clk 0:02:07]} 16. dxe5 {[%clk 0:02:02]}  fxe5 {[%clk 0:02:07]} 17. Qe2 {[%clk 0:01:58]}  Nf4 {[%clk 0:02:05]} 18. Bxf4 {[%clk 0:01:58]}  Rxf4 {[%clk 0:02:04]} 19. Ne3 {[%clk 0:01:53]}  Qa5+ {[%clk 0:01:59]} 20. c3 {[%clk 0:01:50]}  b4 {[%clk 0:01:59]} 21. Nc4 {[%clk 0:01:43]}  Qc7 {[%clk 0:01:59]} 22. Qh5 {[%clk 0:01:39]}  e4 {[%clk 0:01:19]} 23. Qe8+ {[%clk 0:01:22]}  Bf8 {[%clk 0:01:19]} 24. Bxe4 {[%clk 0:01:17]}  Rb8 {[%clk 0:00:44]} 25. Bd3 {[%clk 0:00:55]}  Bf5 {[%clk 0:00:37]} 26. Qe2 {[%clk 0:00:54]}  Bxd3 {[%clk 0:00:29]} 27. Qxd3 {[%clk 0:00:54]}  Re8+ {[%clk 0:00:30]} 28. Ne3 {[%clk 0:00:53]}  bxc3 {[%clk 0:00:28]} 29. bxc3 {[%clk 0:00:51]}  Qf7 {[%clk 0:00:29]} 30. Qd2 {[%clk 0:00:35]}  Bc5 {[%clk 0:00:28]} 31. O-O {[%clk 0:00:32]}  Rxh4 {[%clk 0:00:24]} 32. g3 {[%clk 0:00:29]}  Rh5 {[%clk 0:00:21]} 33. Ng2 {[%clk 0:00:27]}  Rd5 {[%clk 0:00:19]} 34. Qb2 {[%clk 0:00:22]}  g5 {[%clk 0:00:17]} 35. Rae1 {[%clk 0:00:21]}  Rf8 {[%clk 0:00:17]} 36. Ne3 {[%clk 0:00:20]}  Bxe3 {[%clk 0:00:10]} 37. Rxe3 {[%clk 0:00:19]}  Qg7 {[%clk 0:00:09]} 38. Qb3 {[%clk 0:00:18]}  Kh8 {[%clk 0:00:09]} 39. c4 {[%clk 0:00:18]}  Rdf5 {[%clk 0:00:09]} 40. Qd3 {[%clk 0:00:11]}  h5 {[%clk 0:00:08]} 41. Qe4 {[%clk 0:00:11]}  h4 {[%clk 0:00:06]} 42. gxh4 {[%clk 0:00:06]}  gxh4+ {[%clk 0:00:07]} 43. Kh1 {[%clk 0:00:06]}  Rf4 {[%clk 0:00:06]} 44. Qxc6 {[%clk 0:00:06]}  Rg4 {[%clk 0:00:03]} 45. Rh3 {[%clk 0:00:06]}  Rg8 {[%clk 0:00:03]} 46. Rxh4+ {[%clk 0:00:01]}  Rxh4# {[%clk 0:00:03]} 0-1